bitfinex-derivatives/quotes_SOLF0:USTF0_20250919
["timestamp","ask_amount","ask_price","bid_price","bid_amount"]
[1758309430559,3.08230885,237.63,237.62,110.41881361]
[1758309431059,5.002e-05,237.63,237.62,110.41881361]
[1758309436257,5.002e-05,237.63,237.62,6.81881361]
[1758309436457,5.002e-05,237.63,237.62,110.41881361]
[1758309439661,5.002e-05,237.63,237.62,6.81881361]
[1758309439861,5.002e-05,237.63,237.62,103.62881361]
[1758309440368,6.68005002,237.63,237.62,103.62881361]
[1758309442267,6.68005002,237.63,237.62,0.02881361]
[1758309442467,6.68005002,237.63,237.62,103.62881361]
[1758309444567,6.68005002,237.63,237.62,0.02881361]
[1758309444771,6.68005002,237.63,237.6,34.34]
[1758309444772,6.68,237.62,237.6,34.34]
[1758309444968,6.68005002,237.61,237.6,34.34]
[1758309445569,6.68005002,237.61,237.55,6.79]
[1758309445765,5.002e-05,237.6,237.57,6.79]
[1758309445971,5.002e-05,237.59,237.57,6.79]
[1758309446169,5.002e-05,237.58,237.57,6.79]
[1758309446473,5.002e-05,237.58,237.57,110.39]
[1758309448369,5.002e-05,237.58,237.57,6.79]
[1758309448672,5.002e-05,237.58,237.57,110.39]
[1758309465786,5.002e-05,237.58,237.57,6.79]
[1758309466186,5.002e-05,237.58,237.57,110.37]
[1758309469092,5.002e-05,237.58,237.57,6.79]
[1758309469289,6.95005002,237.58,237.56,3.7864]
[1758309469589,0.02890346,237.6,237.57,103.58]
[1758309469885,3.05799773,237.59,237.58,103.58]
[1758309472194,10.00799773,237.59,237.58,103.58]
[1758309474489,10.00799773,237.59,237.56,10.8264]
[1758309474687,6.95,237.59,237.58,103.58]
[1758309474986,10.00742477,237.59,237.58,103.58]
[1758309475592,3.05742477,237.59,237.58,110.62]
[1758309478393,2.44946701,237.59,237.58,110.62]
[1758309479898,2.44946701,237.59,237.58,110.6]
[1758309482598,2.44946701,237.59,237.58,7.04]
[1758309482796,2.44946701,237.59,237.58,110.6]
[1758309485597,2.44946701,237.59,237.58,7.04]
[1758309485800,2.44946701,237.59,237.58,110.58]
[1758309486496,2.44946701,237.59,237.58,7.04]
[1758309486698,2.44946701,237.59,237.58,110.58]
[1758309491809,2.44946701,237.59,237.58,7.04]
[1758309492307,6.89,237.58,237.57,101.04]
[1758309492605,14.06948123,237.58,237.57,103.52]
[1758309492804,7.17948123,237.58,237.57,103.52]
[1758309493005,7.17948123,237.58,237.57,110.11]
[1758309493404,2.44946701,237.58,237.57,110.11]
[1758309494101,2.44946701,237.58,237.57,103.52]
[1758309494309,2.44946701,237.58,237.55,3.7865]
[1758309494508,2.44946701,237.57,237.56,96.5]
[1758309495108,9.33946701,237.57,237.56,96.5]
[1758309495806,9.33946701,237.57,237.53,3.7869]
[1758309496004,2.44946701,237.56,237.54,110.11]
[1758309496309,2.44946701,237.55,237.54,110.11]
[1758309497614,3.05045011,237.55,237.54,110.11]
[1758309502302,3.05045011,237.55,237.54,103.52]
[1758309502512,3.05045011,237.55,237.48,3.7877]
[1758309502712,3.05045011,237.54,237.5,6.59]
[1758309503014,3.05045011,237.53,237.51,110.11]
[1758309503314,3.05045011,237.52,237.51,110.11]
[1758309506315,3.05045011,237.52,237.51,6.59]
[1758309506512,3.05045011,237.52,237.51,110.11]
[1758309508319,9.94045011,237.52,237.51,103.52]
[1758309508820,9.94045011,237.52,237.51,103.5]
[1758309509320,3.05045011,237.52,237.51,103.5]
[1758309509921,3.05045011,237.52,237.51,110.23]
[1758309512323,3.05045011,237.52,237.51,6.73]
[1758309512517,3.05045011,237.52,237.51,110.23]
[1758309512820,3.10761859,237.52,237.51,107.2871]
[1758309513017,3.10761859,237.52,237.51,114.0171]
[1758309524526,3.10761859,237.52,237.51,10.5171]
[1758309524729,3.10761859,237.52,237.51,113.9971]
[1758309530431,0.02951467,237.54,237.53,3.787]
[1758309530629,0.02951467,237.54,237.53,113.977]
[1758309530828,0.02951467,237.54,237.53,115.45826599]
[1758309532026,0.02951467,237.54,237.53,110.19]
[1758309533734,0.02951467,237.54,237.53,110.17]
[1758309534538,0.02951467,237.54,237.53,6.73]
[1758309534744,0.02951467,237.54,237.53,110.17]
[1758309536143,4.73001422,237.61,237.54,6.73]
[1758309536344,6.97,237.62,237.56,6.73]
[1758309536345,11.70001422,237.62,237.56,6.73]
[1758309536544,6.97,237.6,237.57,103.44]
[1758309536750,11.70001422,237.61,237.58,6.73]
[1758309537050,11.70001422,237.61,237.59,103.44]
[1758309538550,6.74,237.61,237.59,103.44]
[1758309539143,6.74,237.61,237.59,110.11]
[1758309540047,11.47001422,237.61,237.59,110.11]
[1758309541953,4.73001422,237.61,237.59,110.11]
[1758309542150,4.73001422,237.62,237.6,6.67]
[1758309542451,4.73001422,237.62,237.61,110.07]
[1758309542652,3.112915,237.62,237.61,110.07]
[1758309543353,3.112915,237.62,237.61,103.4]
[1758309544152,3.112915,237.62,237.61,110.07]
[1758309545653,3.112915,237.62,237.61,113.8557]
[1758309553762,3.112915,237.62,237.61,10.4557]
[1758309553955,3.112915,237.62,237.61,113.8157]
[1758309554963,1.5e-05,237.62,237.61,113.8157]
[1758309556258,6.71,237.68,237.64,3.7852]
[1758309556461,6.71,237.68,237.65,103.34]
[1758309557261,69.67221669,237.69,237.65,103.34]
[1758309557460,6.71,237.68,237.65,103.34]
[1758309558162,6.71,237.68,237.65,110.01]
[1758309559662,6.71,237.68,237.66,6.67]
[1758309559970,6.71,237.68,237.67,103.32]
[1758309561771,69.67221669,237.69,237.67,103.32]
[1758309561968,76.38221669,237.69,237.67,103.32]
[1758309562471,76.38221669,237.69,237.68,103.32]
[1758309565372,76.38221669,237.69,237.66,6.67]
[1758309565576,76.38221669,237.69,237.67,103.3]
[1758309566274,6.71,237.68,237.67,103.3]
[1758309566973,9.78724016,237.68,237.67,103.3]
[1758309569772,4.12918605,237.68,237.65,103.28]
[1758309569968,6.88,237.65,237.64,0.0272297]
[1758309570169,9.95724016,237.65,237.64,103.3072297]
[1758309570366,3.07724016,237.65,237.64,110.1572297]
[1758309585988,3.07724016,237.65,237.64,6.8772297]
[1758309586184,3.07724016,237.65,237.64,110.0972297]
[1758309588787,4.016e-05,237.65,237.64,110.0972297]
[1758309591686,4.016e-05,237.65,237.64,6.8772297]
[1758309591882,4.016e-05,237.65,237.64,110.0772297]
[1758309596493,4.016e-05,237.65,237.64,6.8772297]
[1758309596695,4.016e-05,237.65,237.64,110.0572297]
[1758309598791,7.61242342,237.75,237.7,3.7841]
[1758309598792,5.44504635,237.75,237.7,3.7841]
[1758309598987,5.44504635,237.75,237.71,103.16]
[1758309599393,7.11,237.74,237.71,103.16]
[1758309599594,7.11,237.74,237.71,103.18959147]
[1758309600190,5.44504635,237.75,237.71,103.18959147]
[1758309600390,7.11,237.74,237.71,103.18959147]
[1758309600986,7.11,237.72,237.71,103.18959147]
[1758309601290,3.03392817,237.72,237.71,103.18959147]
[1758309601496,10.14392817,237.72,237.71,103.18959147]
[1758309602900,10.14392817,237.72,237.71,0.02959147]
[1758309603198,10.14392817,237.72,237.71,103.18959147]
[1758309603691,10.14392817,237.72,237.71,0.02959147]
[1758309604107,14.8565511,237.72,237.71,98.26959147]
[1758309604299,15.2765511,237.72,237.71,103.16959147]
[1758309605489,10.14392817,237.72,237.65,10.585]
[1758309605694,2.31371256,237.7,237.66,103.14]
[1758309605895,7.11,237.68,237.67,98.18]
[1758309606095,10.14392817,237.68,237.67,98.18]
[1758309607901,10.14392817,237.68,237.66,10.5848]
[1758309608096,10.14392817,237.67,237.66,3.7848]
[1758309608292,11.62456653,237.67,237.64,3.7852]
[1758309608492,3.03392817,237.66,237.65,103.14]
[1758309608698,3.03392817,237.66,237.65,6.8]
[1758309609000,3.03392817,237.66,237.65,109.92]
[1758309610303,3.03392817,237.66,237.65,6.8]
[1758309610503,10.14392817,237.66,237.65,103.12]
[1758309611392,3.03392817,237.66,237.6,3.7858]
[1758309611593,7.11,237.63,237.57,324.88]
[1758309611897,3.03392817,237.62,237.59,6.8]
[1758309612097,3.03392817,237.61,237.58,103.12]
[1758309612300,3.03392817,237.6,237.59,6.8]
[1758309616301,3.03392817,237.6,237.59,109.92]
[1758309616607,10.14392817,237.6,237.57,324.88]
[1758309616809,3.03392817,237.59,237.58,103.12]
[1758309618306,10.14392817,237.59,237.58,103.12]
[1758309620407,3.03392817,237.59,237.56,10.5864]
[1758309620605,10.14392817,237.58,237.57,103.12]
[1758309621411,3.03392817,237.58,237.57,109.92]
[1758309624419,3.03392817,237.58,237.57,6.8]
[1758309624711,3.03392817,237.58,237.57,109.9]
[1758309626110,10.14392817,237.58,237.52,6.8]
[1758309626308,3.03392817,237.57,237.53,103.1]
[1758309626508,3.03392817,237.56,237.54,10.5867]
[1758309626713,8.59063836,237.61,237.55,103.1]
[1758309626909,7.11,237.59,237.56,6.8]
[1758309627109,0.02789993,237.57,237.56,6.8]
[1758309627315,10.1598865,237.57,237.56,103.1]
[1758309627522,3.0498865,237.57,237.56,103.1]
[1758309627908,3.0498865,237.57,237.54,3.7867]
[1758309628114,3.0498865,237.57,237.55,109.9]
[1758309628115,3.02198657,237.56,237.55,109.9]
[1758309628713,0.02789993,237.57,237.56,10.8165]
[1758309629412,3.04868399,237.57,237.56,10.8165]
[1758309629920,0.02789993,237.57,237.56,10.8165]
[1758309630513,1.48063836,237.64,237.56,7.03]
[1758309630716,3.02014135,237.63,237.56,7.03]
[1758309630915,3.02014135,237.62,237.56,7.03]
[1758309631215,3.02014135,237.61,237.56,7.03]
[1758309631511,3.02014135,237.6,237.59,10.8159]
[1758309631715,3.02014135,237.6,237.59,113.9159]
[1758309634713,3.02014135,237.6,237.59,113.8959]
[1758309637014,8.28063836,237.67,237.61,3.7856]
[1758309637214,9.83667289,237.66,237.62,110.11]
[1758309637412,9.83667289,237.65,237.62,110.11]
[1758309637616,3.03667289,237.64,237.62,110.11]
[1758309637810,3.03667289,237.63,237.62,110.11]
[1758309638622,3.03667289,237.63,237.62,103.08]
[1758309640723,3.03667289,237.63,237.62,110.11]
[1758309641911,3.03667289,237.67,237.62,113.8954]
[1758309642218,3.03667289,237.66,237.62,106.8654]
[1758309642417,3.03667289,237.65,237.62,106.8654]
[1758309642618,3.03667289,237.64,237.63,7.03]
[1758309643121,6.8,237.63,237.62,103.08]
[1758309643318,9.83667289,237.63,237.62,103.08]
[1758309643519,9.83667289,237.63,237.61,0.02812748]
[1758309643720,8.28063836,237.65,237.62,110.09]
[1758309643920,3.0388659,237.64,237.63,7.03]
[1758309648323,3.0388659,237.64,237.62,103.06]
[1758309648521,3.0388659,237.63,237.62,103.06]
[1758309648724,9.8388659,237.63,237.62,103.04]
[1758309648927,3.0388659,237.63,237.62,103.04]
[1758309649324,3.0388659,237.63,237.62,110.07]
[1758309658029,3.0388659,237.63,237.62,111.55063836]
[1758309659834,2.43534244,237.63,237.62,111.55063836]
[1758309661134,4.244e-05,237.63,237.62,111.55063836]
[1758309662029,4.244e-05,237.63,237.62,8.51063836]
[1758309662332,4.244e-05,237.63,237.62,111.49063836]
[1758309665432,11.41262293,237.72,237.62,111.49063836]
[1758309665630,11.41262293,237.72,237.66,8.08063836]
[1758309665824,6.7,237.72,237.68,6.6]
[1758309666029,6.7,237.72,237.69,102.98]
[1758309666428,6.7,237.72,237.69,109.58]
[1758309666831,6.7,237.73,237.69,102.98]
[1758309667238,4.71262293,237.74,237.69,102.98]
[1758309667535,6.7,237.69,237.68,102.98742041]
[1758309672939,6.7,237.69,237.63,3.7852]
[1758309673143,3.09267457,237.68,237.64,61.62]
[1758309673340,6.7,237.66,237.64,61.62]
[1758309673540,3.09267457,237.65,237.64,61.62]
[1758309678645,3.09267457,237.65,237.64,68.22]
[1758309679546,3.09267457,237.65,237.59,3.7859]
[1758309679746,4.72100087,237.63,237.6,6.6]
[1758309679940,3.09267457,237.62,237.6,6.6]
[1758309680157,3.09267457,237.61,237.6,6.6]
[1758309681948,3.09267457,237.61,237.53,6.6]
[1758309682142,3.09267457,237.6,237.58,109.52]
[1758309682342,3.09267457,237.59,237.58,109.52]
[1758309684145,3.09267457,237.59,237.58,6.6]
[1758309685051,3.09267457,237.59,237.58,109.52]
[1758309686146,3.09267457,237.59,237.51,6.6]
[1758309686346,3.09267457,237.58,237.5,318.18]
[1758309686541,3.09267457,237.57,237.53,6.6]
[1758309686851,3.09267457,237.56,237.53,6.6]
[1758309687049,3.09267457,237.55,237.52,102.92]
[1758309687248,3.09267457,237.54,237.53,6.6]
[1758309687655,3.09267457,237.54,237.51,6.6]
[1758309687953,3.15681543,237.53,237.52,102.92]
[1758309688147,3.15681543,237.53,237.51,6.6]
[1758309688347,3.15681543,237.52,237.51,6.6]
[1758309688547,3.15681543,237.52,237.51,109.52]
[1758309690350,3.15681543,237.52,237.51,6.6]
[1758309690549,3.15681543,237.52,237.51,109.52]
[1758309693955,9.88681543,237.52,237.47,3.7879]
[1758309694163,3.15681543,237.51,237.48,6.8]
[1758309694364,3.15681543,237.5,237.49,92.92]
[1758309694557,3.15681543,237.5,237.49,6.8]
[1758309694751,3.15681543,237.5,237.49,109.74]
[1758309700966,0.03067558,237.52,237.5,6.8]
[1758309701166,0.03067558,237.52,237.51,109.74]
[1758309706768,0.03067558,237.52,237.51,6.8]
[1758309706969,0.03067558,237.52,237.51,109.72]
[1758309716583,0.03067558,237.52,237.51,109.7]
[1758309720180,3.18754156,237.52,237.51,109.7]
[1758309720385,0.03067558,237.52,237.51,109.7]
[1758309721181,3.18823429,237.52,237.51,109.7]
[1758309722586,3.429e-05,237.52,237.51,109.7]
[1758309731791,3.429e-05,237.52,237.51,111.18165261]
[1758309733892,7.23,237.61,237.6,3.7858]
[1758309734189,7.23,237.61,237.6,106.6258]
[1758309734589,10.37932447,237.61,237.6,106.6258]
[1758309739895,10.37932447,237.61,237.6,106.6058]
[1758309740495,10.79932447,237.61,237.58,0.03092879]
[1758309740695,13.43140523,237.59,237.58,0.03092879]
[1758309740896,16.5807297,237.59,237.58,39.05092879]
[1758309742800,16.5807297,237.59,237.54,3.7867]
[1758309742995,4.72227317,237.56,237.55,102.8]
[1758309743203,15.10159764,237.56,237.55,102.8]
[1758309743903,16.58325025,237.56,237.55,102.8]
[1758309744404,11.86097708,237.56,237.55,102.8]
[1758309746299,16.58738427,237.56,237.55,102.8]
[1758309746703,16.58738427,237.56,237.54,3.7867]
[1758309746905,13.4380598,237.56,237.55,102.8]
[1758309747107,11.86293594,237.56,237.55,102.8]
[1758309747700,10.38128333,237.56,237.55,102.8]
[1758309749004,7.87753583,237.56,237.55,109.95]
[1758309751202,3.15128333,237.56,237.55,109.95]
[1758309752206,7.87753583,237.56,237.55,109.95]
[1758309757709,3.15128333,237.56,237.55,109.95]
[1758309766608,3.15128333,237.56,237.55,109.91]
[1758309773013,3.15128333,237.56,237.55,7.15]
[1758309773218,3.15128333,237.56,237.55,109.89]
[1758309779321,3.15128333,237.56,237.55,109.87]
[1758309783624,3.15128333,237.56,237.55,111.35165261]
[1758309788328,2.182e-05,237.56,237.55,111.35165261]
[1758309788720,0.03203893,237.58,237.57,6.94]
[1758309788920,0.03203893,237.58,237.57,109.62]
[1758309789528,4.7262525,237.64,237.6,1.48165261]
[1758309789726,4.7262525,237.64,237.62,6.94]
[1758309790025,4.7262525,237.64,237.63,109.62]
[1758309790527,6.94,237.67,237.63,109.62]
[1758309790528,11.6662525,237.65,237.63,109.62]
[1758309791027,4.7262525,237.65,237.63,109.62]
[1758309793426,4.7262525,237.65,237.63,102.68]
[1758309793733,4.7262525,237.65,237.64,6.94]
[1758309794333,4.7262525,237.66,237.64,6.94]
[1758309794535,4.7262525,237.66,237.65,102.66]
[1758309794735,4.7262525,237.66,237.65,95.5591344]
[1758309795335,4.7262525,237.66,237.65,102.66]
[1758309795938,4.7262525,237.67,237.66,6.94]
[1758309796239,0.73263158,237.68,237.66,6.94]
[1758309796240,4.7262525,237.68,237.66,6.94]
[1758309796445,4.7262525,237.68,237.67,102.64]
[1758309796747,11.6662525,237.69,237.67,102.64]
[1758309797547,11.6662525,237.69,237.67,109.58]
[1758309797743,4.7262525,237.69,237.67,102.64]
[1758309797942,4.7262525,237.69,237.67,109.58]
[1758309798947,4.7262525,237.7,237.68,6.94]
[1758309799146,4.7262525,237.7,237.69,102.64]
[1758309799841,4.7262525,237.7,237.69,109.58]
[1758309800041,0.73249279,237.71,237.69,109.58]
[1758309800042,12.39874529,237.71,237.69,109.58]
[1758309800848,3.04473478,237.7,237.69,109.58]
[1758309802245,6.94,237.69,237.66,6.97120741]
[1758309802452,3.04473478,237.68,237.67,85.24]
[1758309802651,9.98473478,237.68,237.67,85.24]
[1758309802948,3.04473478,237.68,237.67,85.24]
[1758309803152,3.04473478,237.68,237.67,92.18]
[1758309804444,2.41183344,237.68,237.67,92.18]
[1758309804648,4.7262525,237.74,237.68,6.94]
[1758309804848,4.7262525,237.74,237.66,0.03120741]
[1758309805044,4.7262525,237.74,237.68,6.94]
[1758309805250,4.7262525,237.74,237.7,6.94]
[1758309805756,4.7262525,237.75,237.72,6.94]
[1758309806556,11.6662525,237.75,237.73,80.36]
[1758309806752,6.94,237.74,237.73,80.36]
[1758309809253,4.7262525,237.75,237.73,87.25]
[1758309809455,5.45865279,237.76,237.74,6.89]
[1758309809659,0.73240029,237.76,237.74,6.89]
[1758309810055,7.38240029,237.76,237.74,6.89]
[1758309811458,7.38240029,237.76,237.73,102.58]
[1758309811658,7.38240029,237.76,237.73,109.47]
[1758309812860,7.38240029,237.76,237.74,109.47]
[1758309814757,0.73240029,237.76,237.74,109.47]
[1758309814959,0.73240029,237.76,237.75,6.89]
[1758309815561,6.65,237.83,237.75,6.89]
[1758309815759,0.73217686,237.81,237.76,12.2]
[1758309815954,0.73217686,237.81,237.75,6.89]
[1758309816157,3.7828,237.79,237.76,18.23021164]
[1758309816358,6.65,237.78,237.76,18.23021164]
[1758309816559,6.65,237.78,237.77,47.86]
[1758309816759,9.62392073,237.78,237.77,47.86]
[1758309818162,9.62392073,237.78,237.76,0.03021164]
[1758309818358,2.97392073,237.77,237.76,30.57021164]
[1758309818559,9.62392073,237.77,237.76,0.03021164]
[1758309826269,14.35017323,237.77,237.76,0.03021164]
[1758309826990,9.62392073,237.77,237.76,0.03021164]
[1758309827568,2.97392073,237.77,237.76,6.92021164]
[1758309829171,2.97392073,237.77,237.76,0.03021164]
[1758309829375,9.62392073,237.77,237.76,0.03021164]
[1758309840276,14.35017323,237.77,237.76,0.03021164]
[1758309844187,7.17,237.76,237.66,102.5]
[1758309844385,7.17,237.74,237.67,7.2]
[1758309844584,2.97392073,237.73,237.67,7.2]
[1758309844785,2.97392073,237.72,237.69,3.7843]
[1758309844985,2.97392073,237.71,237.7,7.2]
[1758309852389,7.17,237.7,237.68,7.2]
[1758309852688,2.97392073,237.69,237.68,7.2]
[1758309854191,2.97392073,237.69,237.68,109.68]
[1758309857894,2.97392073,237.69,237.68,7.2]
[1758309858110,2.97392073,237.69,237.68,109.68]
[1758309866304,2.97392073,237.69,237.68,7.2]
[1758309866504,2.97392073,237.69,237.68,109.68]
[1758309869401,2.97392073,237.69,237.68,109.66]
[1758309886118,2.073e-05,237.69,237.68,109.66]
[1758309891031,2.073e-05,237.69,237.68,109.62]
[1758309898530,2.073e-05,237.69,237.68,7.2]
[1758309898930,2.073e-05,237.69,237.68,109.6]
[1758309899133,2.073e-05,237.69,237.68,7.2]
[1758309899343,2.073e-05,237.69,237.68,109.6]
[1758309900538,7.09002073,237.69,237.68,102.4]
[1758309900730,2.073e-05,237.69,237.68,102.4]
[1758309900931,2.073e-05,237.69,237.68,109.31]
[1758309902837,2.073e-05,237.69,237.68,6.91]
[1758309903038,2.073e-05,237.69,237.68,109.31]
[1758309904242,2.073e-05,237.69,237.68,102.4]
[1758309904941,2.073e-05,237.69,237.68,109.31]
[1758309905943,2.073e-05,237.69,237.68,102.4]
[1758309907043,2.073e-05,237.69,237.68,102.38]
[1758309907838,2.073e-05,237.69,237.67,3.7847]
[1758309908035,2.073e-05,237.68,237.67,3.7847]
[1758309908345,2.073e-05,237.68,237.67,113.0747]
[1758309911750,2.073e-05,237.68,237.67,10.6947]
[1758309911951,2.073e-05,237.68,237.67,113.0747]
[1758309917954,2.073e-05,237.68,237.67,10.6947]
[1758309918150,2.073e-05,237.68,237.67,113.0547]
[1758309920255,2.073e-05,237.68,237.67,10.6947]
[1758309920457,7.09002073,237.68,237.67,3.7847]
[1758309920650,2.073e-05,237.68,237.67,3.7847]
[1758309920855,2.073e-05,237.68,237.67,106.1447]
[1758309924262,2.073e-05,237.68,237.67,3.7847]
[1758309924463,2.073e-05,237.68,237.67,113.0347]
[1758309926264,2.073e-05,237.68,237.67,106.1247]
[1758309931665,2.073e-05,237.68,237.67,3.7847]
[1758309931863,2.073e-05,237.68,237.67,106.1247]
[1758309932262,2.073e-05,237.68,237.67,3.7847]
[1758309932462,2.073e-05,237.68,237.67,106.1247]
[1758309936072,2.073e-05,237.68,237.67,113.2947]
[1758309936673,2.073e-05,237.68,237.67,106.1247]
[1758309939978,2.073e-05,237.68,237.67,3.7847]
[1758309940177,2.073e-05,237.68,237.67,106.1047]
[1758309945382,0.02778009,237.73,237.72,3.7839]
[1758309945577,3.08552424,237.73,237.72,106.1039]
[1758309945882,3.08552424,237.73,237.72,113.2739]
[1758309951085,3.08552424,237.73,237.72,10.9539]
[1758309951286,7.80441162,237.73,237.72,113.2539]
[1758309958686,3.08552424,237.73,237.72,113.2539]
[1758309962890,3.08552424,237.73,237.72,10.9539]
[1758309963091,3.08552424,237.73,237.72,113.2339]
[1758309963888,3.08552424,237.73,237.72,10.9539]
[1758309964092,9.96552424,237.73,237.66,58.8748]
[1758309964394,3.05774415,237.72,237.68,7.18]
[1758309964594,3.05774415,237.71,237.7,7.18]
[1758309977301,3.05774415,237.71,237.7,109.42]
[1758309980403,9.93774415,237.71,237.7,102.24]
[1758309981001,9.93774415,237.71,237.69,3.7844]
[1758309981207,3.05774415,237.7,237.69,3.7844]
[1758309981403,3.05774415,237.7,237.69,106.0244]
[1758309982206,9.93774415,237.7,237.69,106.0244]
[1758309982806,9.93774415,237.7,237.69,3.7844]
[1758309982998,9.93774415,237.7,237.69,106.0244]
[1758309984814,3.05774415,237.7,237.69,113.2044]
[1758309987810,3.05774415,237.7,237.69,10.9644]
[1758309988002,3.05774415,237.7,237.69,113.1844]
[1758309995014,3.05774415,237.7,237.69,102.22]
[1758309995215,3.05774415,237.7,237.67,3.7847]
[1758309995412,7.04,237.68,237.67,3.7847]
[1758309995607,10.09774415,237.68,237.67,106.0047]
[1758309995813,3.05774415,237.68,237.67,113.2747]
[1758309996117,10.09774415,237.68,237.67,3.7847]
[1758309996716,10.09774415,237.68,237.67,106.0047]
[1758309997720,3.05774415,237.68,237.67,113.2747]
[1758310003918,4.415e-05,237.68,237.67,113.2747]
[1758310012327,0.02778009,237.73,237.72,3.7839]
[1758310012524,0.02778009,237.73,237.72,114.71353139]
[1758310021339,7.01778009,237.73,237.72,3.7839]
[1758310021531,0.02778009,237.73,237.65,7.2]
[1758310021725,0.02778009,237.73,237.67,1.47963139]
[1758310021930,0.02778009,237.73,237.69,7.2]
[1758310022137,0.02778009,237.73,237.71,7.2]
[1758310022436,0.02778009,237.73,237.72,102.16]
[1758310022835,0.02778009,237.73,237.71,10.984]
[1758310023036,0.02778009,237.73,237.72,102.16]
[1758310023439,0.02778009,237.73,237.72,109.36]
[1758310024543,2.9737328,237.73,237.72,109.36]
[1758310034743,2.9737328,237.73,237.72,7.2]
[1758310034939,2.9737328,237.73,237.72,109.34]
[1758310036338,3.28e-05,237.73,237.72,109.34]
[1758310036940,6.99,237.78,237.72,109.34]
[1758310037140,6.99,237.78,237.73,7.2]
[1758310037339,6.99,237.78,237.75,7.2]
[1758310037540,6.99,237.78,237.76,113.1032]
[1758310037741,6.99,237.78,237.77,102.12]
[1758310038345,5.45113357,237.81,237.77,105.903]
[1758310038540,5.45113357,237.81,237.77,109.32]
[1758310038745,6.99,237.8,237.77,109.32]
[1758310039042,6.99,237.8,237.75,0.03013559]
[1758310039043,5.45113357,237.81,237.78,105.9028]
[1758310039345,6.99,237.8,237.78,105.9028]
[1758310039540,6.99,237.8,237.79,102.12]
[1758310040241,6.99,237.8,237.78,3.7828]
[1758310040544,6.99,237.8,237.79,102.12]
[1758310040740,0.73224619,237.81,237.79,102.12]
[1758310041041,6.99,237.83,237.8,7.2]
[1758310041239,4.71888738,237.84,237.82,7.2]
[1758310041446,11.70888738,237.84,237.83,102.12]
[1758310042143,6.99,237.84,237.83,102.12]
[1758310042346,11.70888738,237.84,237.83,102.12]
[1758310042544,6.99,237.84,237.83,102.12]
[1758310043347,68.63425813,237.85,237.83,109.32]
[1758310043547,56.92537075,237.85,237.83,113.102]
[1758310044141,56.19330941,237.85,237.83,113.102]
[1758310046346,56.19330941,237.85,237.84,7.2]
[1758310046543,11.70888738,237.88,237.86,7.2]
[1758310046750,11.70888738,237.88,237.87,102.1]
[1758310047345,4.71888738,237.9,237.88,7.2]
[1758310047550,11.70888738,237.92,237.83,58.8344]
[1758310047848,11.70888738,237.92,237.85,7.2]
[1758310048049,6.99,237.92,237.87,7.2]
[1758310048347,4.71888738,237.93,237.9,7.22]
[1758310048545,12.58067932,237.94,237.91,102.08]
[1758310048746,7.13,237.93,237.91,102.08]
[1758310048946,5.45067932,237.94,237.91,102.08]
[1758310049147,7.13,237.93,237.91,102.08]
[1758310049348,5.45067932,237.94,237.91,102.08]
[1758310049649,7.13,237.93,237.91,102.08]
[1758310049850,12.58067932,237.94,237.91,109.3]
[1758310050243,7.86179194,237.94,237.91,109.3]
[1758310052656,0.73179194,237.94,237.92,7.22]
[1758310052856,0.73179194,237.94,237.91,109.3]
[1758310053157,7.86179194,237.94,237.91,109.3]
[1758310053458,7.13,237.93,237.91,109.3]
[1758310055056,7.86179194,237.94,237.91,109.3]
[1758310055257,7.86179194,237.94,237.92,7.22]
[1758310055458,7.86179194,237.94,237.93,102.06]
[1758310056850,0.73179194,237.94,237.93,102.06]
[1758310058152,7.86179194,237.94,237.91,7.22]
[1758310058357,7.86179194,237.94,237.92,98.78]
[1758310058658,0.73179194,237.94,237.92,91.56]